Workbook

Sheet Macro for Waterfall Chart
BF1: 132.2307692
E2: Shade Area in Box
E3: and then press macro | N3: Example with Spinner
E5: Input Base and Incremental Values | N5: Base Case | O5: 450 | Q5: Base IRR | R5: =T5/100 -> 0.24 | T5: 24
N6: First Factor | O6: -100 | Q6: Decrease for Sales | R6: -0.015
N7: Second Factor | O7: 270 | Q7: Decrease for Timing | R7: -0.02
E8: Last Year | F8: 1300 | N8: Third Factor | O8: 20 | Q8: Decrease for Expense | R8: -0.012
E9: Base Revenue | F9: 50 | N9: Subtotal | Q9: Sub-total
E10: Other Revenue | F10: -20 | N10: Fourth Factor | O10: 130 | Q10: Increase for Interest Rate | R10: 0.1
E11: Subtotal | N11: Fifth Factor | O11: -450 | Q11: Increase for Mitigation | R11: 0.12
E12: Expense Cut | F12: 250 | N12: Last Value | Q12: Final IRR
E13: Interest | F13: 100
E14: Other Income | F14: -200 | N14: Example with Negative: This is a big problem
E15: Taxes | F15: 80
E16: Adjustment | F16: 0.0001 | N16: Base Value | O16: 70 | Q16: 120
E17: End Point | N17: Decrease | O17: -30
N18: Subtotal
N19: Increase | O19: 10
E20: All the code is in a macro called SELECT_RANGE | N20: Neg with Small Space | O20: -45
N21: Change to Negative | O21: -35
E22: Give Suggestions or Comments | N22: Final Value Negative
E23: edwardbodmer@gmail.com
N24: Example with Zero
E26: Simplest Case - No Macro Needed | N26: Income 2014 | O26: 15
N27: Sales Increase | O27: 20
E28: Base Case | F28: 500 | N28: Exp Decline | O28: 0
E29: Item 1 | F29: 100 | N29: Subtotal
E30: Item 2 | F30: 50 | N30: Financing Cost | O30: -10
E31: Item 3 | F31: 30 | N31: Income 2015
E32: Item 4 | F32: 70
E33: Final | N33: Decline to Below Zero
E35: Simple Case - All Negative | N35: Income 2014 | O35: 100
N36: Sales Decrease | O36: -55
E37: Base Case | F37: 500 | N37: Expense Increase | O37: -72
E38: Increment 1 | F38: -100 | N38: Income 2015
E39: Increment 2 | F39: -50
E40: Increment 3 | F40: -30
E41: Increment 4 | F41: -70 | N41: Extra Declince
E42: Final
N43: Income 2014 | O43: 100
E44: Case with Subtotals and Negative | N44: Sales Decrease | O44: -55
N45: Expense Increase | O45: -72
E46: Current Scenario | F46: 54404.01909 | N46: Further Bad | O46: -25
E47: Production | F47: -9283.709333 | N47: Very Very Bad | O47: -32
E48: Regulating | F48: -862.772192 | N48: Income 2015
E49: Merchant Prices | F49: -6773.09186
E50: Firming Cost | F50: -3136.032718
E51: Turbine Maintenance | F51: 2604.654381 | N51: Income | O51: 100
E52: Sub-total | N52: Rev 1 | O52: 20
E53: Managed Services | F53: 2338.413924 | N53: Rev 2 | O53: 18
E54: Administratve Fee | F54: 1355.170076 | N54: Rev 3 | O54: 15
E55: Insturance | F55: 1306.724584 | N55: Rev 4 | O55: 12
E56: Desk Cost | F56: 240.5956998 | N56: Rev 5 | O56: 10
E57: Total Wind Transmission | F57: 2214.303664 | N57: Rev 6 | O57: 8
E58: Subtotal | N58: Rev 7 | O58: 6
E59: Firming and Balancing | F59: 1737.853301 | N59: Exp 1 | O59: -4
E60: PTC Correction | F60: -165.2179264 | N60: Exp 2 | O60: -7
E61: Inflation | F61: 3534.532728 | N61: Exp 3 | O61: -9
E62: Base Case | N62: Exp 4 | O62: -10
N63: Exp 5 | O63: -12
N64: Exp 6 | O64: -13
E65: Starting EBITDA | F65: 300 | N65: Exp 7 | O65: -16
E66: Increment 1 | F66: 50 | N66: Final
E67: Increment 2 | F67: -30
E68: Increment 3 | F68: -15 | N68: Downside Analysis with Negative
E69: Sub-total
E70: Increment 5 | F70: 140 | N70: Base Case | O70: 0.05
E71: Increment 6 | F71: -260 | N71: Cost Overrun Risk | O71: -0.01432988194
E72: Final EBITDA | N72: Availability Risk | O72: -0.01031692383
N73: Contract vs Actual Heat Rate | O73: -0.01626640938
N74: Higher Variable O&M | O74: -0.007362878309
N75: Higher Fixed O&M | O75: -0.01430385479
N76: Worst Case
N78: Downside Analysis with Negative
N80: Base Case | O80: 0.05
N81: Cost Overrun Risk | O81: -0.01432988194
N82: Availability Risk | O82: -0.01031692383
N83: Contract vs Actual Heat Rate | O83: -0.01626640938
N84: Higher Variable O&M | O84: -0.007362878309
N85: Higher Fixed O&M | O85: -0.01430385479
N86: Other Bad Stuff | O86: -0.03
N87: Worst Case
E90: Downside Analysis with Negative | N90: Downside Analysis with Negative
E92: Base Case | F92: 1.2 | N92: Base Case | O92: 0.05
E93: Cost Overrun Risk | F93: -0.1 | N93: Cost Overrun Risk | O93: -0.01432988194
E94: Availability Risk | F94: -0.2 | N94: Availability Risk | O94: 0.02
E95: Contract vs Actual Heat Rate | F95: 0.18 | N95: Contract vs Actual Heat Rate | O95: -0.04
E96: Higher Variable O&M | F96: -0.3 | N96: Higher Variable O&M | O96: -0.032
E97: Higher Fixed O&M | F97: 0.12 | N97: Higher Fixed O&M | O97: -0.01430385479
E98: Other Bad Stuff | F98: 0.14 | N98: Other Bad Stuff | O98: -0.03
E99: Worst Case | N99: Worst Case
N102: Negative Test
N104: Base | O104: 10
N105: Incease | O105: 15
N106: Decrease 1 | O106: -35
N107: Subtotal
N108: Decrease 2 | O108: -20
N109: Final
N111: Change Sign and Increase without Sign Change
N113: Starting Point | O113: 35
N114: Normal Decrease | O114: -15
N115: Subtotal 1
N116: Big Decrease | O116: -55
N117: Increase After Change | O117: 12
N118: Second Increase | O118: 15
N119: Final
N121: Change Sign and Increase with Second Sign Change
N123: Starting Point | O123: 35
N124: Normal Decrease | O124: -15
N125: Subtotal 1
N126: Big Decrease | O126: -55
N127: Increase After Change | O127: 12
N128: Second Increase | O128: 40
N129: Final
N136: Ultimate
N138: Starting Point | O138: 35
N139: Normal Increase | O139: 20
N140: Normal Decrease | O140: -15
N141: Zero Test | O141: 0
N142: Subtotal 1
N143: Big Decrease | O143: -55
N144: Increase After Decrease | O144: 12
N145: Cost 3 | O145: -20
N146: Subtotal 2
N147: Cost 4 | O147: -35
N148: Final Point
N151: Negative Start - Declining
N153: Base | O153: -10
N154: Incease | O154: -14
N155: Decrease 1 | O155: -35
N156: Subtotal
N157: Decrease 2 | O157: -20
N158: Final
N161: Negative Start - Increasing
N163: Base | O163: -100
N164: Incease | O164: 20
N165: Decrease 1 | O165: 40
N166: Subtotal
N167: Decrease 2 | O167: 55
N168: Final

Sheet Notes on Waterfall Data
A1: Income 2014 100.00 | B1: 100 | E1: 6.666666667 | F1: 100 | M1: 100 | N1: =M1 -> 100 | P1: =N1 -> 100 | Q1: =ABS(O1) -> 0 | AS1: 1 | AT1: =BA1+BB1 -> 2600 | AU1: =BB1-BC1 -> 1300 | AV1: =BB1 -> 1300 | AX1: TRUE | AY1: TRUE | AZ1: =waterfall_graph_data1 -> Last Year | BA1: 1300 | BB1: =BA1 -> 1300 | BD1: =CHOOSE(AS1,AV1,AU1,AT1) -> 1300 | BE1: =IF(BB1>=0,ABS(BC1),-ABS(BC1)) -> 0 | BG1: =BD1 -> 1300 | BH1: =IF(BC1>=0,0,BF1) -> 0 | BI1: =IF(BC1<0,0,BF1) -> 0 | BJ1: =BA1 -> 1300 | BQ1: =AZ1 -> Last Year | BS1: =BB1 -> 1300 | BT1: =BQ1&BR1&TEXT(BS1,"*,#,##0.00;(*,(#,##0.00);(* ??_);_(@_)") -> Last Year 1,300.00 | BU1: =BG1 -> 1300 | BV1: 0 | BW1: =BE1 -> 0 | BX1: =BI1 -> 0 | BY1: =BB1 -> 1300
A2: Sales Increase 70.00 | B2: 63.33333333 | C2: 6.666666667 | D2: 30 | F2: 100 | G2: 70 | M2: -30 | N2: =IF(M2<>0,N1+M2,N1) -> 70 | O2: =N2-N1 -> -30 | P2: =IF(O2>=0,N2-O2,N1+O2) -> 70 | Q2: 30 | AS2: 1 | AT2: 1400 | AU2: 1300 | AV2: 1350 | AX2: FALSE | AY2: TRUE | AZ2: Base Revenue | BA2: 50 | BB2: =IF(AY2,BB1+BA2,BB1) -> 1350 | BC2: =BB2-BB1 -> 50 | BD2: 1350 | BE2: 50 | BG2: 1350 | BH2: 0 | BI2: 0 | BJ2: =IF(BC2<>0,BC2,BB2) -> 50 | BQ2: Base Revenue | BS2: =BB2 -> 1350 | BT2: =BQ2&BR2&TEXT(BS2,"*,#,##0.00;(*,(#,##0.00);(* ??_);_(@_)") -> Base Revenue 1,350.00 | BU2: 1350 | BV2: 0 | BW2: 50 | BX2: 0 | BY2: =BB1 -> 1300 | BZ2: =BB2 -> 1350
A3: Exp Decline 40.00 | B3: 33.33333333 | C3: 6.666666667 | D3: 30 | G3: 70 | H3: 40 | M3: -30 | N3: =IF(M3<>0,N2+M3,N2) -> 40 | O3: =N3-N2 -> -30 | P3: =IF(O3>=0,N3-O3,N2+O3) -> 40 | Q3: 30 | AS3: 1 | AT3: 1310 | AU3: 1350 | AV3: 1330 | AX3: FALSE | AY3: TRUE | AZ3: Other Revenue | BA3: -20 | BB3: =IF(AY3,BB2+BA3,BB2) -> 1330 | BC3: =BB3-BB2 -> -20 | BD3: 1330 | BE3: 20 | BG3: 1330 | BH3: 0 | BI3: 0 | BJ3: =IF(BC3<>0,BC3,BB3) -> -20 | BQ3: Other Revenue | BS3: =BB3 -> 1330 | BT3: =BQ3&BR3&TEXT(BS3,"*,#,##0.00;(*,(#,##0.00);(* ??_);_(@_)") -> Other Revenue 1,330.00 | BU3: 1330 | BV3: 0 | BW3: 20 | BX3: 0 | BZ3: =BB2 -> 1350 | CA3: =BB3 -> 1330
A4: Other 40.00 | B4: 40 | D4: 0 | E4: 6.666666667 | H4: 40 | I4: 40 | M4: -40 | N4: =IF(M4<>0,N3+M4,N3) -> 0 | O4: =N4-N3 -> -40 | P4: =IF(O4>=0,N4-O4,N3+O4) -> 0 | Q4: 40 | AS4: 1 | AT4: 1330 | AU4: 1330 | AV4: 1330 | AX4: FALSE | AY4: TRUE | AZ4: Subtotal | BA4: 0 | BB4: =IF(AY4,BB3+BA4,BB3) -> 1330 | BC4: =BB4-BB3 -> 0 | BD4: 1330 | BE4: 0 | BG4: 1330 | BH4: 0 | BI4: 0 | BJ4: =IF(BC4<>0,BC4,BB4) -> 1330 | BQ4: Subtotal | BS4: 1e-06 | BT4: =BQ4&BR4&TEXT(BS4,"*,#,##0.00;(*,(#,##0.00);(* ??_);_(@_)") -> Subtotal 0.00 | BU4: 1330 | BV4: 0 | BW4: 0 | BX4: 0 | CA4: =BB3 -> 1330 | CB4: =BB4 -> 1330
A5: Financing Cost -20.00 | B5: -26.66666667 | C5: 6.666666667 | D5: 60 | I5: 40 | J5: -20 | M5: -20 | N5: =IF(M5<>0,N4+M5,N4) -> -20 | O5: =N5-N4 -> -20 | P5: =IF(O5>=0,N5-O5,N4+O5) -> -20 | Q5: 20 | AS5: 2 | AT5: 1830 | AU5: 1330 | AV5: 1580 | AX5: FALSE | AY5: TRUE | AZ5: Expense Cut | BA5: 250 | BB5: =IF(AY5,BB4+BA5,BB4) -> 1580 | BC5: =BB5-BB4 -> 250 | BD5: 1330 | BE5: 250 | BG5: 1330 | BH5: 0 | BI5: 0 | BJ5: =IF(BC5<>0,BC5,BB5) -> 250 | BQ5: Expense Cut | BS5: =BB5 -> 1580 | BT5: =BQ5&BR5&TEXT(BS5,"*,#,##0.00;(*,#,##0.00);(* ??_);_(@_)") -> Expense Cut 1,580.00 | BU5: 1330 | BV5: =BH5 -> 0 | BW5: 250 | BX5: 0 | CB5: =BB4 -> 1330 | CC5: =BB5 -> 1580
A6: Income 2015 -20.00 | B6: -20 | D6: 0 | E6: 6.666666667 | J6: -20 | K6: -20 | M6: 0 | N6: =IF(M6<>0,N5+M6,N5) -> -20 | O6: =N6-N5 -> 0 | P6: =IF(O6>=0,N6-O6,N5+O6) -> -20 | Q6: 0 | AS6: 1 | AT6: 1680 | AU6: 1580 | AV6: 1580 | AX6: FALSE | AY6: FALSE | AZ6: Interest | BA6: 100 | BB6: =IF(AY6,BB5+BA6,BB5) -> 1580 | BC6: =BB6-BB5 -> 0 | BD6: 1580 | BE6: 0 | BG6: 1580 | BH6: 0 | BI6: 0 | BJ6: =IF(BC6<>0,BC6,BB6) -> 1580 | BQ6: Interest | BS6: =BB6 -> 1580 | BT6: =BQ6&BR6&TEXT(BS6,"*,#,##0.00;(*,#,##0.00);(* ??_);_(@_)") -> Interest 1,580.00 | BU6: 1580 | BV6: =BH6 -> 0 | BW6: 0 | BX6: 0 | CC6: =BB5 -> 1580
A7: =COLUMN() -> 1 | B7: =COLUMN() -> 2 | C7: =COLUMN() -> 3 | D7: =COLUMN() -> 4 | E7: =COLUMN() -> 5 | F7: =COLUMN() -> 6 | G7: =COLUMN() -> 7 | H7: =COLUMN() -> 8 | I7: =COLUMN() -> 9 | J7: =COLUMN() -> 10 | K7: =COLUMN() -> 11 | L7: =COLUMN() -> 12 | M7: =COLUMN() -> 13 | N7: =COLUMN() -> 14 | O7: =COLUMN() -> 15 | P7: =COLUMN() -> 16 | Q7: =COLUMN() -> 17 | BB7: =COLUMN() -> 54 | BC7: =COLUMN() -> 55 | BD7: =COLUMN() -> 56 | BE7: =COLUMN() -> 57 | BF7: =COLUMN() -> 58 | BG7: =COLUMN() -> 59 | BH7: =COLUMN() -> 60 | BI7: =COLUMN() -> 61 | BJ7: =COLUMN() -> 62 | BK7: =COLUMN() -> 63 | BL7: =COLUMN() -> 64 | BM7: =COLUMN() -> 65 | BN7: =COLUMN() -> 66 | BO7: =COLUMN() -> 67 | BP7: =COLUMN() -> 68 | BQ7: =COLUMN() -> 69 | BR7: =COLUMN() -> 70 | BS7: =COLUMN() -> 71 | BT7: =COLUMN() -> 72 | BU7: =COLUMN() -> 73 | BV7: =COLUMN() -> 74 | BW7: =COLUMN() -> 75 | BX7: =COLUMN() -> 76 | BY7: =COLUMN() -> 77 | BZ7: =COLUMN() -> 78 | CA7: =COLUMN() -> 79 | CB7: =COLUMN() -> 80 | CC7: =COLUMN() -> 81 | CD7: =COLUMN() -> 82
A8: Fixed Graph: Graph Titles | D8: Fixed Graph: Increment (absolute Value) | F8: Fixed Graph: Connectors | AV8: Accumulation | BB8: CALCULATION: BASE VALUE: If not zero accumulate; if zero Last Value, CHANGE TO TRUE/FALSE | BQ8: BASIS FOR X-AXIS | BS8: BASIS FOR X-AXIS | BT8: GRAPH: This is the x-axis title Link to the Title
B9: Fixed Graph: Base of Stacked Bar | E9: Fixed Graph: Space for Increment | AU9: Difference | BB9: CALCULATION: ACCUMULATED VALUE: Formula is accumulation | BU9: GRAPH: Adjusted Base of Stack from calculation THIS IS SERIES 1
C10: Fixed Graph: Space for Negative Label (Not Graphed | AT10: Alt Difference | BC10: CALCULATION: INCREMENT: Formula is difference between accumulated value | BV10: GRAPH: Space for Value in Negative Case
A11: TO MAKE GRAPH BY YOURSELF | L11: Chart Title | M11: =AZ1 -> Last Year | N11: =TEXT(BB1,"*,#,##0.00;(*,(#,##0.00);(* ??_);_(@_)") -> 1,300.00 | O11: Bulid-up Chart | AS11: Choose | AZ11: NEED TO CHANGE THIS --------> | BD11: CALCULATION: BASE OF STACK BAR WITHOUT ADJUSTMENT: Base of Stacked Bar: Formula depends on the increment. If positive then ACC - Incr if negative Last ACC + Incr | BW11: GRAPH: Absolute Value of Increment
A12: 1. PRESS ALT F1 on the yellow AREA | AV12: Compute Switch for normal/subtotal | BE12: CALCULATION: ABS VALUE OF INCREMENT: This is enough to make graph without fancy stuff | BX12: GRAPH: Space for Value in Positive Case
A13: 2. CHANGE TO STACKED BAR AND SWITCH AROUND ROW AND COLUMN | BF13: INPUT: LABEL SPACE: This is enough to make graph without fancy stuff
A14: 3. SELECT DATA SERIES AND NO FILL EVERYTHING EXCEPT INCREMENTS | BG14: CALCULATION: ADJUSTED BASE VALUE: This is base of the stacked bar minus the label space if the increment is negative
A15: 4. SELECT DATA PONTS FOR BASE BAR AND FILL STARTING, ENDING AND SUBTOTALS | AV15: Make minimum scale low | BH15: CALCULATION: NEGATIVE SPACE: This is the label space if the increment is negative
A16: 5. CHANGE THE SERIES CHART TYPE OF THE CONNECTOR LINES -- SERIES 5 FORWARD | T16: Base is blue | BI16: CALCULATION: POSITIVE SPACE: This is label space if the increment is positive
A18: THERE IS A CALCULATION SECTION AND A GRAPH SECTION ON THE RIGHT | T18: Increment is green | BS18: Fix Title: If zero then make .0000001
BA19: BASE DATA FROM RANGE NAME THAT CAN CHANGE
A20: There are always the same number of series
A21: Leave Series | BL21: Set the current workbook | BS21: Fix Formatting on the x-axis titles
BC23: Y-axis
A24: Demonstrate with Macro
G25: 19
A26: Try to add spinners and range names
A27: Delete range names | G27: =LOG(G25)/LOG(10) -> 1.278753601
G29: =ROUNDUP(G25,-1) -> 20 | BS29: Fixed with removed paranthesis around
O137: Videos | P137: Video
O138: Overview of Program | P138: https://www.youtube.com/watch?v=0Abx6Ji90cc
O139: Chart from New Sheet: Formatting Data
O140: Chart from New Sheet: Getting One Chart Correct
O141: Chart from New Sheet: Creating Multiple Charts
O142: Chart from New Sheet: Changing Chart Data wiith Spinner
O143: Comments on Adjusting Charts

Sheet Simple Examples
A2: Easiest Case -- Positive -- Base is Just the Sum of the Increments
C3: Base | D3: Sum + Incr | G3: Sum
B4: Base | C4: =C8 -> 25 | D4: =D8 -> 25 | E4: =D9 -> 40 | F4: =D10 -> 50 | G4: =D11 -> 65 | H4: Use Cum
B5: Increment | C5: 0 | D5: =C9 -> 15 | E5: =C10 -> 10 | F5: =C11 -> 15 | G5: =C12 -> 0
C7: Input | D7: Accum
B8: base | C8: 25 | D8: =C8 -> 25
B9: Decrease | C9: 15 | D9: =D8+C9 -> 40
B10: Decrease | C10: 10 | D10: =D9+C10 -> 50
B11: Decrease | C11: 15 | D11: 65
D12: 65
A14: Negative Case -- Base is Accumulation and Make Absolute Value
C15: Base | D15: Abs and Subtract | G15: End is last
B16: Base | C16: =C20 -> 100 | D16: =D21 -> 80 | E16: =D22 -> 65 | F16: =D23 -> 55 | G16: =D24 -> 55 | H16: Use Cum
B17: Increment | C17: 0 | D17: =-C21 -> 20 | E17: =-C22 -> 15 | F17: =-C23 -> 10 | G17: =C25 -> 0 | H17: Abs Value
B20: base | C20: 100 | D20: =C20 -> 100
B21: Incease | C21: -20 | D21: =D20+C21 -> 80
B22: Decrease | C22: -15 | D22: =D21+C22 -> 65
B23: Decrease | C23: -10 | D23: 55
D24: 55
A27: One Change in Sign Case Positive to Negative -- Much More Difficult
E28: Need to Fill both
B29: Deminstrates problem when the accumulated amount changes sign
B31: Series 1 | C31: =D36 -> 10 | D31: =D36 -> 10 | E31: =D37 -> 25 | F31: =D38 -> -10 | G31: =SUM(F31:F32) -> -30
B32: Series 2 | C32: 0 | D32: =C37 -> 15 | E32: =D38 -> -10 | F32: -20 | G32: 0
B34: Difference | D34: =D31-D32 -> -5 | E34: =E31-E32 -> 35 | G34: =G31-G32 -> -30
E35: Chg Sign
B36: base | C36: 10 | D36: =C36 -> 10
B37: Incease | C37: 15 | D37: =D36+C37 -> 25
B38: Decrease | C38: -35 | D38: =D37+C38 -> -10
B39: Decrease | C39: -20 | D39: -30
A42: One Change in Sign and Continued Negative
E43: Leave | G43: Opposite
E44: Change | F44: Last | G44: of Sum
B46: Series 1 | C46: =C51 -> 10 | D46: =SUM(C46:C47) -> 10 | E46: =SUM(D46:D47) -> 25 | F46: =D53 -> -10 | G46: =SUM(F46:F47) -> -30 | H46: =SUM(G46:G47) -> -60
B47: Series 2 | C47: 0 | D47: =C52 -> 15 | E47: =D53 -> -10 | F47: =C54 -> -20 | G47: =C55 -> -30 | H47: 0
B49: Difference | D49: =D46-D47 -> -5 | E49: =E46-E47 -> 35 | H49: =H46-H47 -> -60
B51: base | C51: 10 | D51: =C51 -> 10
B52: Incease | C52: 15 | D52: =D51+C52 -> 25 | F52: If prior is negative
B53: Decrease | C53: -35 | D53: =D52+C53 -> -10 | F53: Then make increment w/o abs
B54: Decrease | C54: -20 | D54: -30
B55: Decrease | C55: -30 | D55: -60
D56: -60
E59: Leave | G59: Opposite
E60: Change | F60: Last | G60: of Sum
B62: Series 1 | C62: =C67 -> 10 | D62: =SUM(C62:C63) -> 10 | E62: =SUM(D62:D63) -> 25 | F62: =E63 -> -60 | G62: =D71 -> 20 | H62: =SUM(G62:G63) -> 30
B63: Series 2 | C63: 0 | D63: =C68 -> 15 | E63: =C69-E62 -> -60 | F63: =D70+D69 -> 35 | G63: =C71 -> 10 | H63: 0
B65: Difference | D65: =D62-D63 -> -5 | E65: =E62-E63 -> 85 | H65: =H62-H63 -> 30
D66: Accum
B67: base | C67: 10 | D67: =C67 -> 10
B68: Incease | C68: 15 | D68: =D67+C67 -> 20 | F68: If prior is negative
B69: Decrease | C69: -35 | D69: =D68+C68 -> 35 | F69: Then make increment w/o abs
B70: Increase | C70: 20 | D70: 0
B71: Decrease | C71: 10 | D71: 20
D72: 30

Sheet Waterfall Chartdata1
O1: =CHOOSE(U1,BF1,BF1,BF1,0,0,0,0,-BF1) -> 433.3333333 | P1: =CHOOSE(U1,0,BA1,Q1,-BA1,-BA1,0,BA1,-BA1) -> 0 | Q1: =IF(AX1,BA1+R1,0) -> 0 | S1: =CHOOSE(U1,AV1,AV1-BA1,AV1-BA1,AV1,AV1-BF1,AV1,R1-T1,AV1) -> 1300 | T1: =CHOOSE(U1,0,0,0,AV1-BF1,BF1,-BF1,-BF1,0) -> 0 | U1: =AE1*1+AD1*2+AC1*3+AB1*4+AA1*5+Z1*6+Y1*7+X1*8 -> 1 | V1: =SUMPRODUCT(X1:AE1*1) -> 1 | X1: =AND(AV1<0,BA1>0) -> FALSE | Y1: =AND(BA1<0,AU1<0,NOT(AY1)) -> FALSE | Z1: =AH1 -> FALSE | AA1: =AND(AF1,NOT(AX1),NOT(AB1),NOT(AD1),AU1>0) -> FALSE | AB1: =AND(NOT(AX1),AJ1<0,AF1,NOT(Y1),AG1) -> FALSE | AC1: =AND(AX1,BA1<0) -> FALSE | AD1: =AND(AF1,BA1>0,AV1>0) -> FALSE | AE1: =AND(AY1,AV1>0) -> TRUE | AF1: =NOT(AY1) -> FALSE | AG1: =BA1<0 -> FALSE | AH1: =AND(AV1<0,AY1) -> FALSE | AJ1: =AV1-BF1 -> 866.6666667 | AU1: =BA1 -> 1300 | AV1: =BA1 -> 1300 | AW1: =IF(AV1>0,1,0) -> 1 | AX1: FALSE | AY1: TRUE | AZ1: =waterfall_graph_data1 -> Last Year | BA1: 1300 | BB1: =AU1 -> 1300 | BF1: 433.3333333 | BJ1: =IF(AY1,BB1,BA1) -> 1300 | BQ1: =AZ1 -> Last Year | BS1: =BB1 -> 1300 | BT1: =BQ1&BR1 -> Last Year | BU1: =S1 -> 1300 | BV1: =T1 -> 0 | BW1: =P1 -> 0 | BX1: =O1 -> 433.3333333 | BY1: =BB1 -> 1300
O2: =CHOOSE(U2,BF2,BF2,BF2,0,0,0,0,-BF2) -> 433.3333333 | P2: =CHOOSE(U2,0,BA2,Q2,-BA2,-BA2,0,BA2,-BA2) -> 50 | Q2: =IF(AX2,BA2+R2,0) -> 0 | R2: =AV1 -> 1300 | S2: =CHOOSE(U2,AV2,AV2-BA2,AV2-BA2,AV2,AV2-BF2,AV2,R2-T2,AV2) -> 1300 | T2: =CHOOSE(U2,0,0,0,AV2-BF2,BF2,-BF2,-BF2,0) -> 0 | U2: =AE2*1+AD2*2+AC2*3+AB2*4+AA2*5+Z2*6+Y2*7+X2*8 -> 2 | V2: =SUMPRODUCT(X2:AE2*1) -> 1 | X2: =AND(AV2<0,BA2>0) -> FALSE | Y2: =AND(BA2<0,AU2<0,NOT(AY2)) -> FALSE | Z2: =AH2 -> FALSE | AA2: =AND(AF2,NOT(AX2),NOT(AB2),NOT(AD2),AU2>0) -> FALSE | AB2: =AND(NOT(AX2),AJ2<0,AF2,NOT(Y2),AG2) -> FALSE | AC2: =AND(AX2,BA2<0) -> FALSE | AD2: =AND(AF2,BA2>0,AV2>0) -> TRUE | AE2: =AND(AY2,AV2>0) -> FALSE | AF2: =NOT(AY2) -> TRUE | AG2: =BA2<0 -> FALSE | AH2: =AND(AV2<0,AY2) -> FALSE | AJ2: =AV2-BF2 -> 916.6666667 | AU2: =IF(AX2,AV1,AV2) -> 1350 | AV2: =AV1+BA2 -> 1350 | AW2: =IF(AV2>0,1,0) -> 1 | AX2: =AV2*AV1<0 -> FALSE | AY2: FALSE | AZ2: Base Revenue | BA2: 50 | BB2: =AU2 -> 1350 | BF2: =BF1 -> 433.3333333 | BJ2: =IF(AY2,BB2,BA2) -> 50 | BQ2: =AZ2 -> Base Revenue | BS2: =BB2 -> 1350 | BT2: =BQ2&BR2 -> Base Revenue | BU2: =S2 -> 1300 | BV2: =T2 -> 0 | BW2: =P2 -> 50 | BX2: =O2 -> 433.3333333 | BY2: =BB1 -> 1300 | BZ2: =BB2 -> 1350
O3: =CHOOSE(U3,BF3,BF3,BF3,0,0,0,0,-BF3) -> 0 | P3: =CHOOSE(U3,0,BA3,Q3,-BA3,-BA3,0,BA3,-BA3) -> 20 | Q3: =IF(AX3,BA3+R3,0) -> 0 | R3: =AV2 -> 1350 | S3: =CHOOSE(U3,AV3,AV3-BA3,AV3-BA3,AV3,AV3-BF3,AV3,R3-T3,AV3) -> 896.6666667 | T3: =CHOOSE(U3,0,0,0,AV3-BF3,BF3,-BF3,-BF3,0) -> 433.3333333 | U3: =AE3*1+AD3*2+AC3*3+AB3*4+AA3*5+Z3*6+Y3*7+X3*8 -> 5 | V3: =SUMPRODUCT(X3:AE3*1) -> 1 | X3: =AND(AV3<0,BA3>0) -> FALSE | Y3: =AND(BA3<0,AU3<0,NOT(AY3)) -> FALSE | Z3: =AH3 -> FALSE | AA3: =AND(AF3,NOT(AX3),NOT(AB3),NOT(AD3),AU3>0) -> TRUE | AB3: =AND(NOT(AX3),AJ3<0,AF3,NOT(Y3),AG3) -> FALSE | AC3: =AND(AX3,BA3<0) -> FALSE | AD3: =AND(AF3,BA3>0,AV3>0) -> FALSE | AE3: =AND(AY3,AV3>0) -> FALSE | AF3: =NOT(AY3) -> TRUE | AG3: =BA3<0 -> TRUE | AH3: =AND(AV3<0,AY3) -> FALSE | AJ3: =AV3-BF3 -> 896.6666667 | AU3: =IF(AX3,AV2,AV3) -> 1330 | AV3: =AV2+BA3 -> 1330 | AW3: =IF(AV3>0,1,0) -> 1 | AX3: =AV3*AV2<0 -> FALSE | AY3: FALSE | AZ3: Other Revenue | BA3: -20 | BB3: =AU3 -> 1330 | BF3: =BF2 -> 433.3333333 | BJ3: =IF(AY3,BB3,BA3) -> -20 | BQ3: =AZ3 -> Other Revenue | BS3: =BB3 -> 1330 | BT3: =BQ3&BR3 -> Other Revenue | BU3: =S3 -> 896.6666667 | BV3: =T3 -> 433.3333333 | BW3: =P3 -> 20 | BX3: =O3 -> 0 | BZ3: =BB2 -> 1350 | CA3: =BB3 -> 1330
O4: =CHOOSE(U4,BF4,BF4,BF4,0,0,0,0,-BF4) -> 433.3333333 | P4: =CHOOSE(U4,0,BA4,Q4,-BA4,-BA4,0,BA4,-BA4) -> 0 | Q4: =IF(AX4,BA4+R4,0) -> 0 | R4: =AV3 -> 1330 | S4: =CHOOSE(U4,AV4,AV4-BA4,AV4-BA4,AV4,AV4-BF4,AV4,R4-T4,AV4) -> 1330 | T4: =CHOOSE(U4,0,0,0,AV4-BF4,BF4,-BF4,-BF4,0) -> 0 | U4: =AE4*1+AD4*2+AC4*3+AB4*4+AA4*5+Z4*6+Y4*7+X4*8 -> 1 | V4: =SUMPRODUCT(X4:AE4*1) -> 1 | X4: =AND(AV4<0,BA4>0) -> FALSE | Y4: =AND(BA4<0,AU4<0,NOT(AY4)) -> FALSE | Z4: =AH4 -> FALSE | AA4: =AND(AF4,NOT(AX4),NOT(AB4),NOT(AD4),AU4>0) -> FALSE | AB4: =AND(NOT(AX4),AJ4<0,AF4,NOT(Y4),AG4) -> FALSE | AC4: =AND(AX4,BA4<0) -> FALSE | AD4: =AND(AF4,BA4>0,AV4>0) -> FALSE | AE4: =AND(AY4,AV4>0) -> TRUE | AF4: =NOT(AY4) -> FALSE | AG4: =BA4<0 -> FALSE | AH4: =AND(AV4<0,AY4) -> FALSE | AJ4: =AV4-BF4 -> 896.6666667 | AU4: =IF(AX4,AV3,AV4) -> 1330 | AV4: =AV3+BA4 -> 1330 | AW4: =IF(AV4>0,1,0) -> 1 | AX4: =AV4*AV3<0 -> FALSE | AY4: TRUE | AZ4: Subtotal | BA4: 0 | BB4: =AU4 -> 1330 | BF4: =BF3 -> 433.3333333 | BJ4: =IF(AY4,BB4,BA4) -> 1330 | BQ4: =AZ4 -> Subtotal | BS4: =BB4 -> 1330 | BT4: =BQ4&BR4 -> Subtotal | BU4: =S4 -> 1330 | BV4: =T4 -> 0 | BW4: =P4 -> 0 | BX4: =O4 -> 433.3333333 | CA4: =BB3 -> 1330 | CB4: =BB4 -> 1330
O5: =CHOOSE(U5,BF5,BF5,BF5,0,0,0,0,-BF5) -> 433.3333333 | P5: =CHOOSE(U5,0,BA5,Q5,-BA5,-BA5,0,BA5,-BA5) -> 250 | Q5: =IF(AX5,BA5+R5,0) -> 0 | R5: =AV4 -> 1330 | S5: =CHOOSE(U5,AV5,AV5-BA5,AV5-BA5,AV5,AV5-BF5,AV5,R5-T5,AV5) -> 1330 | T5: =CHOOSE(U5,0,0,0,AV5-BF5,BF5,-BF5,-BF5,0) -> 0 | U5: =AE5*1+AD5*2+AC5*3+AB5*4+AA5*5+Z5*6+Y5*7+X5*8 -> 2 | V5: =SUMPRODUCT(X5:AE5*1) -> 1 | X5: =AND(AV5<0,BA5>0) -> FALSE | Y5: =AND(BA5<0,AU5<0,NOT(AY5)) -> FALSE | Z5: =AH5 -> FALSE | AA5: =AND(AF5,NOT(AX5),NOT(AB5),NOT(AD5),AU5>0) -> FALSE | AB5: =AND(NOT(AX5),AJ5<0,AF5,NOT(Y5),AG5) -> FALSE | AC5: =AND(AX5,BA5<0) -> FALSE | AD5: =AND(AF5,BA5>0,AV5>0) -> TRUE | AE5: =AND(AY5,AV5>0) -> FALSE | AF5: =NOT(AY5) -> TRUE | AG5: =BA5<0 -> FALSE | AH5: =AND(AV5<0,AY5) -> FALSE | AJ5: =AV5-BF5 -> 1146.666667 | AU5: =IF(AX5,AV4,AV5) -> 1580 | AV5: =AV4+BA5 -> 1580 | AW5: =IF(AV5>0,1,0) -> 1 | AX5: =AV5*AV4<0 -> FALSE | AY5: FALSE | AZ5: Expense Cut | BA5: 250 | BB5: =AU5 -> 1580 | BF5: =BF4 -> 433.3333333 | BJ5: =IF(AY5,BB5,BA5) -> 250 | BQ5: =AZ5 -> Expense Cut | BS5: =BB5 -> 1580 | BT5: =BQ5&BR5 -> Expense Cut | BU5: =S5 -> 1330 | BV5: =T5 -> 0 | BW5: =P5 -> 250 | BX5: =O5 -> 433.3333333 | CB5: =BB4 -> 1330 | CC5: =BB5 -> 1580
O6: =CHOOSE(U6,BF6,BF6,BF6,0,0,0,0,-BF6) -> 433.3333333 | P6: =CHOOSE(U6,0,BA6,Q6,-BA6,-BA6,0,BA6,-BA6) -> 100 | Q6: =IF(AX6,BA6+R6,0) -> 0 | R6: =AV5 -> 1580 | S6: =CHOOSE(U6,AV6,AV6-BA6,AV6-BA6,AV6,AV6-BF6,AV6,R6-T6,AV6) -> 1580 | T6: =CHOOSE(U6,0,0,0,AV6-BF6,BF6,-BF6,-BF6,0) -> 0 | U6: =AE6*1+AD6*2+AC6*3+AB6*4+AA6*5+Z6*6+Y6*7+X6*8 -> 2 | V6: =SUMPRODUCT(X6:AE6*1) -> 1 | X6: =AND(AV6<0,BA6>0) -> FALSE | Y6: =AND(BA6<0,AU6<0,NOT(AY6)) -> FALSE | Z6: =AH6 -> FALSE | AA6: =AND(AF6,NOT(AX6),NOT(AB6),NOT(AD6),AU6>0) -> FALSE | AB6: =AND(NOT(AX6),AJ6<0,AF6,NOT(Y6),AG6) -> FALSE | AC6: =AND(AX6,BA6<0) -> FALSE | AD6: =AND(AF6,BA6>0,AV6>0) -> TRUE | AE6: =AND(AY6,AV6>0) -> FALSE | AF6: =NOT(AY6) -> TRUE | AG6: =BA6<0 -> FALSE | AH6: =AND(AV6<0,AY6) -> FALSE | AJ6: =AV6-BF6 -> 1246.666667 | AU6: =IF(AX6,AV5,AV6) -> 1680 | AV6: =AV5+BA6 -> 1680 | AW6: =IF(AV6>0,1,0) -> 1 | AX6: =AV6*AV5<0 -> FALSE | AY6: FALSE | AZ6: Interest | BA6: 100 | BB6: =AU6 -> 1680 | BF6: =BF5 -> 433.3333333 | BJ6: =IF(AY6,BB6,BA6) -> 100 | BQ6: =AZ6 -> Interest | BS6: =BB6 -> 1680 | BT6: =BQ6&BR6 -> Interest | BU6: =S6 -> 1580 | BV6: =T6 -> 0 | BW6: =P6 -> 100 | BX6: =O6 -> 433.3333333 | CC6: =BB5 -> 1580 | CD6: =BB6 -> 1680
O7: =CHOOSE(U7,BF7,BF7,BF7,0,0,0,0,-BF7) -> 0 | P7: =CHOOSE(U7,0,BA7,Q7,-BA7,-BA7,0,BA7,-BA7) -> 200 | Q7: =IF(AX7,BA7+R7,0) -> 0 | R7: =AV6 -> 1680 | S7: =CHOOSE(U7,AV7,AV7-BA7,AV7-BA7,AV7,AV7-BF7,AV7,R7-T7,AV7) -> 1046.666667 | T7: =CHOOSE(U7,0,0,0,AV7-BF7,BF7,-BF7,-BF7,0) -> 433.3333333 | U7: =AE7*1+AD7*2+AC7*3+AB7*4+AA7*5+Z7*6+Y7*7+X7*8 -> 5 | V7: =SUMPRODUCT(X7:AE7*1) -> 1 | X7: =AND(AV7<0,BA7>0) -> FALSE | Y7: =AND(BA7<0,AU7<0,NOT(AY7)) -> FALSE | Z7: =AH7 -> FALSE | AA7: =AND(AF7,NOT(AX7),NOT(AB7),NOT(AD7),AU7>0) -> TRUE | AB7: =AND(NOT(AX7),AJ7<0,AF7,NOT(Y7),AG7) -> FALSE | AC7: =AND(AX7,BA7<0) -> FALSE | AD7: =AND(AF7,BA7>0,AV7>0) -> FALSE | AE7: =AND(AY7,AV7>0) -> FALSE | AF7: =NOT(AY7) -> TRUE | AG7: =BA7<0 -> TRUE | AH7: =AND(AV7<0,AY7) -> FALSE | AJ7: =AV7-BF7 -> 1046.666667 | AU7: =IF(AX7,AV6,AV7) -> 1480 | AV7: =AV6+BA7 -> 1480 | AW7: =IF(AV7>0,1,0) -> 1 | AX7: =AV7*AV6<0 -> FALSE | AY7: FALSE | AZ7: Other Income | BA7: -200 | BB7: =AU7 -> 1480 | BF7: =BF6 -> 433.3333333 | BJ7: =IF(AY7,BB7,BA7) -> -200 | BQ7: =AZ7 -> Other Income | BS7: =BB7 -> 1480 | BT7: =BQ7&BR7 -> Other Income | BU7: =S7 -> 1046.666667 | BV7: =T7 -> 433.3333333 | BW7: =P7 -> 200 | BX7: =O7 -> 0 | CD7: =BB6 -> 1680 | CE7: =BB7 -> 1480
O8: =CHOOSE(U8,BF8,BF8,BF8,0,0,0,0,-BF8) -> 433.3333333 | P8: =CHOOSE(U8,0,BA8,Q8,-BA8,-BA8,0,BA8,-BA8) -> 80 | Q8: =IF(AX8,BA8+R8,0) -> 0 | R8: =AV7 -> 1480 | S8: =CHOOSE(U8,AV8,AV8-BA8,AV8-BA8,AV8,AV8-BF8,AV8,R8-T8,AV8) -> 1480 | T8: =CHOOSE(U8,0,0,0,AV8-BF8,BF8,-BF8,-BF8,0) -> 0 | U8: =AE8*1+AD8*2+AC8*3+AB8*4+AA8*5+Z8*6+Y8*7+X8*8 -> 2 | V8: =SUMPRODUCT(X8:AE8*1) -> 1 | X8: =AND(AV8<0,BA8>0) -> FALSE | Y8: =AND(BA8<0,AU8<0,NOT(AY8)) -> FALSE | Z8: =AH8 -> FALSE | AA8: =AND(AF8,NOT(AX8),NOT(AB8),NOT(AD8),AU8>0) -> FALSE | AB8: =AND(NOT(AX8),AJ8<0,AF8,NOT(Y8),AG8) -> FALSE | AC8: =AND(AX8,BA8<0) -> FALSE | AD8: =AND(AF8,BA8>0,AV8>0) -> TRUE | AE8: =AND(AY8,AV8>0) -> FALSE | AF8: =NOT(AY8) -> TRUE | AG8: =BA8<0 -> FALSE | AH8: =AND(AV8<0,AY8) -> FALSE | AJ8: =AV8-BF8 -> 1126.666667 | AU8: =IF(AX8,AV7,AV8) -> 1560 | AV8: =AV7+BA8 -> 1560 | AW8: =IF(AV8>0,1,0) -> 1 | AX8: =AV8*AV7<0 -> FALSE | AY8: FALSE | AZ8: Taxes | BA8: 80 | BB8: =AU8 -> 1560 | BF8: =BF7 -> 433.3333333 | BJ8: =IF(AY8,BB8,BA8) -> 80 | BQ8: =AZ8 -> Taxes | BS8: =BB8 -> 1560 | BT8: =BQ8&BR8 -> Taxes | BU8: =S8 -> 1480 | BV8: =T8 -> 0 | BW8: =P8 -> 80 | BX8: =O8 -> 433.3333333 | CE8: =BB7 -> 1480 | CF8: =BB8 -> 1560
O9: =CHOOSE(U9,BF9,BF9,BF9,0,0,0,0,-BF9) -> 433.3333333 | P9: =CHOOSE(U9,0,BA9,Q9,-BA9,-BA9,0,BA9,-BA9) -> 0.0001 | Q9: =IF(AX9,BA9+R9,0) -> 0 | R9: =AV8 -> 1560 | S9: =CHOOSE(U9,AV9,AV9-BA9,AV9-BA9,AV9,AV9-BF9,AV9,R9-T9,AV9) -> 1560 | T9: =CHOOSE(U9,0,0,0,AV9-BF9,BF9,-BF9,-BF9,0) -> 0 | U9: =AE9*1+AD9*2+AC9*3+AB9*4+AA9*5+Z9*6+Y9*7+X9*8 -> 2 | V9: =SUMPRODUCT(X9:AE9*1) -> 1 | X9: =AND(AV9<0,BA9>0) -> FALSE | Y9: =AND(BA9<0,AU9<0,NOT(AY9)) -> FALSE | Z9: =AH9 -> FALSE | AA9: =AND(AF9,NOT(AX9),NOT(AB9),NOT(AD9),AU9>0) -> FALSE | AB9: =AND(NOT(AX9),AJ9<0,AF9,NOT(Y9),AG9) -> FALSE | AC9: =AND(AX9,BA9<0) -> FALSE | AD9: =AND(AF9,BA9>0,AV9>0) -> TRUE | AE9: =AND(AY9,AV9>0) -> FALSE | AF9: =NOT(AY9) -> TRUE | AG9: =BA9<0 -> FALSE | AH9: =AND(AV9<0,AY9) -> FALSE | AJ9: =AV9-BF9 -> 1126.666767 | AU9: =IF(AX9,AV8,AV9) -> 1560.0001 | AV9: =AV8+BA9 -> 1560.0001 | AW9: =IF(AV9>0,1,0) -> 1 | AX9: =AV9*AV8<0 -> FALSE | AY9: FALSE | AZ9: Adjustment | BA9: 0.0001 | BB9: =AU9 -> 1560.0001 | BF9: =BF8 -> 433.3333333 | BJ9: =IF(AY9,BB9,BA9) -> 0.0001 | BQ9: =AZ9 -> Adjustment | BS9: =BB9 -> 1560.0001 | BT9: =BQ9&BR9 -> Adjustment | BU9: =S9 -> 1560 | BV9: =T9 -> 0 | BW9: =P9 -> 0.0001 | BX9: =O9 -> 433.3333333 | CF9: =BB8 -> 1560 | CG9: =BB9 -> 1560.0001
O10: =CHOOSE(U10,BF10,BF10,BF10,0,0,0,0,-BF10) -> 433.3333333 | P10: =CHOOSE(U10,0,BA10,Q10,-BA10,-BA10,0,BA10,-BA10) -> 0 | Q10: =IF(AX10,BA10+R10,0) -> 0 | R10: =AV9 -> 1560.0001 | S10: =CHOOSE(U10,AV10,AV10-BA10,AV10-BA10,AV10,AV10-BF10,AV10,R10-T10,AV10) -> 1560.0001 | T10: =CHOOSE(U10,0,0,0,AV10-BF10,BF10,-BF10,-BF10,0) -> 0 | U10: =AE10*1+AD10*2+AC10*3+AB10*4+AA10*5+Z10*6+Y10*7+X10*8 -> 1 | V10: =SUMPRODUCT(X10:AE10*1) -> 1 | X10: =AND(AV10<0,BA10>0) -> FALSE | Y10: =AND(BA10<0,AU10<0,NOT(AY10)) -> FALSE | Z10: =AH10 -> FALSE | AA10: =AND(AF10,NOT(AX10),NOT(AB10),NOT(AD10),AU10>0) -> FALSE | AB10: =AND(NOT(AX10),AJ10<0,AF10,NOT(Y10),AG10) -> FALSE | AC10: =AND(AX10,BA10<0) -> FALSE | AD10: =AND(AF10,BA10>0,AV10>0) -> FALSE | AE10: =AND(AY10,AV10>0) -> TRUE | AF10: =NOT(AY10) -> FALSE | AG10: =BA10<0 -> FALSE | AH10: =AND(AV10<0,AY10) -> FALSE | AJ10: =AV10-BF10 -> 1126.666767 | AU10: =IF(AX10,AV9,AV10) -> 1560.0001 | AV10: =AV9+BA10 -> 1560.0001 | AW10: =IF(AV10>0,1,0) -> 1 | AX10: =AV10*AV9<0 -> FALSE | AY10: TRUE | AZ10: End Point | BA10: 0 | BB10: =AU10 -> 1560.0001 | BF10: =BF9 -> 433.3333333 | BJ10: =IF(AY10,BB10,BA10) -> 1560.0001 | BQ10: =AZ10 -> End Point | BS10: =BB10 -> 1560.0001 | BT10: =BQ10&BR10 -> End Point | BU10: =S10 -> 1560.0001 | BV10: =T10 -> 0 | BW10: =P10 -> 0 | BX10: =O10 -> 433.3333333 | CG10: =BB9 -> 1560.0001
B11: =COLUMN() -> 2 | C11: =COLUMN() -> 3 | D11: =COLUMN() -> 4 | E11: =COLUMN() -> 5 | F11: =COLUMN() -> 6 | G11: =COLUMN() -> 7 | H11: =COLUMN() -> 8 | I11: =COLUMN() -> 9 | J11: =COLUMN() -> 10 | K11: =COLUMN() -> 11 | L11: =COLUMN() -> 12 | M11: =COLUMN() -> 13 | N11: =COLUMN() -> 14 | O11: =COLUMN() -> 15 | P11: =COLUMN() -> 16 | Q11: =COLUMN() -> 17 | R11: =COLUMN() -> 18 | S11: =COLUMN() -> 19 | T11: =COLUMN() -> 20 | U11: =COLUMN() -> 21 | V11: =COLUMN() -> 22 | W11: =COLUMN() -> 23 | X11: =COLUMN() -> 24 | Y11: =COLUMN() -> 25 | Z11: =COLUMN() -> 26 | AA11: =COLUMN() -> 27 | AB11: =COLUMN() -> 28 | AC11: =COLUMN() -> 29 | AD11: =COLUMN() -> 30 | AE11: =COLUMN() -> 31 | AF11: =COLUMN() -> 32 | AG11: =COLUMN() -> 33 | AH11: =COLUMN() -> 34 | AI11: =COLUMN() -> 35 | AJ11: =COLUMN() -> 36 | AK11: =COLUMN() -> 37 | AL11: =COLUMN() -> 38 | AM11: =COLUMN() -> 39 | AN11: =COLUMN() -> 40 | AO11: =COLUMN() -> 41 | AP11: =COLUMN() -> 42 | AQ11: =COLUMN() -> 43 | AR11: =COLUMN() -> 44 | AS11: =COLUMN() -> 45 | AT11: =COLUMN() -> 46 | AU11: =COLUMN() -> 47 | AV11: =COLUMN() -> 48 | AW11: =COLUMN() -> 49 | AX11: =COLUMN() -> 50 | AY11: =COLUMN() -> 51 | AZ11: =COLUMN() -> 52 | BA11: =COLUMN() -> 53 | BB11: =COLUMN() -> 54 | BC11: =COLUMN() -> 55 | BD11: =COLUMN() -> 56 | BE11: =COLUMN() -> 57 | BF11: =COLUMN() -> 58 | BG11: =COLUMN() -> 59 | BH11: =COLUMN() -> 60 | BI11: =COLUMN() -> 61 | BJ11: =COLUMN() -> 62 | BK11: =COLUMN() -> 63 | BL11: =COLUMN() -> 64 | BM11: =COLUMN() -> 65 | BN11: =COLUMN() -> 66 | BO11: =COLUMN() -> 67 | BP11: =COLUMN() -> 68 | BQ11: =COLUMN() -> 69 | BR11: =COLUMN() -> 70 | BS11: =COLUMN() -> 71 | BT11: =COLUMN() -> 72 | BU11: =COLUMN() -> 73 | BV11: =COLUMN() -> 74 | BW11: =COLUMN() -> 75 | BX11: =COLUMN() -> 76 | BY11: =COLUMN() -> 77 | BZ11: =COLUMN() -> 78 | CA11: =COLUMN() -> 79 | CB11: =COLUMN() -> 80 | CC11: =COLUMN() -> 81 | CD11: =COLUMN() -> 82 | CE11: =COLUMN() -> 83 | CF11: =COLUMN() -> 84 | CG11: =COLUMN() -> 85 | CH11: =COLUMN() -> 86 | CI11: =COLUMN() -> 87 | CJ11: =COLUMN() -> 88 | CK11: =COLUMN() -> 89 | CL11: =COLUMN() -> 90 | CM11: =COLUMN() -> 91 | CN11: =COLUMN() -> 92 | CO11: =COLUMN() -> 93 | CP11: =COLUMN() -> 94 | CQ11: =COLUMN() -> 95 | CR11: =COLUMN() -> 96 | CS11: =COLUMN() -> 97 | CT11: =COLUMN() -> 98 | CU11: =COLUMN() -> 99 | CV11: =COLUMN() -> 100
O12: Final | P12: Final | Q12: Change | R12: Prior | S12: Final | T12: Final | U12: Code | V12: Sumproduct | X12: Negative | Y12: Negative | Z12: Negative | AA12: Negative | AB12: Not | AC12: Chg | AD12: Pos | AE12: Pos | AF12: Not | AG12: Neg | AH12: Neg | AJ12: Label | AU12: Cum | AV12: Raw | AX12: Chg | AY12: Tot or | AZ12: Read | BA12: Read | BB12: Conect | BF12: Label | BJ12: Label | BT12: X | BU12: Base | BV12: Label | BW12: Incr- | BX12: Label | BY12: Con-
O13: Positive | P13: Increment | Q13: Sign | R13: Cumulative | S13: Base | T13: Neg | U13: Number | V13: Test | X13: Base | Y13: Cumulative | Z13: Cumulative | AA13: Increment | AB13: Enough | AC13: Sign | AD13: Incr | AE13: Cum | AF13: Tot or | AG13: Incr | AH13: Label | AJ13: Space | AU13: Adj | AV13: Cum | AX13: Sign | AY13: Sub | AZ13: Label | BA13: Data | BB13: Adj | BF13: Input | BJ13: to Show | BT13: Axis | BU13: Bar | BV13: Minus | BW13: ment | BX13: Plus | BY13: nector
O14: Label | Q14: Adjustment | S14: Bar | T14: Label | X14: Pos Incr | Y14: and Incr | Z14: Switch | AA14: Switch | AB14: Space | AC14: Negative | AD14: Switch | AE14: Switch | AF14: Subtotal | AG14: Switch | AH14: Switch | AJ14: Avail
O15: Space | T15: Space | X15: Cde 8 | Y15: Cde 7 | Z15: Cde 6 | AA15: Cde 5 | AB15: Cde 4 | AC15: Cde 3 | AD15: Cde 2 | AE15: Cde 1 | AX15: Chart Title
S17: 1 - Cum
S18: 2 - Cum - Incr
